[Event "5th Sharjah Masters 2022"]
[Site "Sharjah"]
[Date "2022.05.26"]
[Round "6.14"]
[White "Abasov, Nijat"]
[Black "Iskandarov, Misratdin"]
[Result "1/2-1/2"]
[ECO "A26"]
[WhiteElo "2635"]
[BlackElo "2601"]
[Annotator "TA"]
[PlyCount "67"]
[EventDate "2022.05.21"]
[EventType "swiss"]
[EventCountry "UAE"]
[SourceTitle "playchess.com"]
[Source "ChessBase"]
[SourceQuality "1"]
[TimeControl "5400+30"]

{[%evp 15,67,17,19,10,19,20,36,43,41,39,35,35,49,54,56,33,35,37,43,50,58,42,62,33,48,38,50,46,51,51,44,45,41,41,55,0,0,0,0,0,0,0,0,0,0,0,0,0,0,0,0,0,0,0]} 1. c4 {[%emt 0:00:47]} e5 {[%emt 0:01:43]} 2. g3 {[%emt 0:00:47]} Nc6 {[%emt 0:01:07]} 3. Bg2 {[%emt 0:00:19]} d6 {[%emt 0:01:19]} 4. Nc3 {[%emt 0:00:24]} g6 {[%emt 0:00:23]} 5. d3 {[%emt 0:00:13]} Bg7 {[%emt 0:00:08]} 6. e4 {[%emt 0:00:15]} Nge7 {[%emt 0:06:58]} 7. Nge2 {[%emt 0:01:08]} O-O {[%emt 0:00:53]} 8. O-O {[%emt 0:03:14]} Bd7 {[%emt 0:02:08] 8...f5 is a critical line.} 9. Rb1 {[%emt 0:05:39] [#] A26: English Opening vs King's Indian with ...Nc6 and d3.} a6 $146 {[%emt 0:08:13]} ({Predecessor:} 9... Qc8 10. Nd5 Nxd5 11. cxd5 Ne7 12. Bg5 Re8 13. d4 f6 14. Be3 f5 15. dxe5 Bxe5 16. Nd4 fxe4 17. Bxe4 {½-½ (41) Horvath,C (2540)-Izsak,G (2435) Hungary 1997}) 10. b4 {[%emt 0:04:37]} Qc8 {[%emt 0:10:49]} (10... b5 {is interesting.} 11. Bg5 h6 12. Be3 Nd4) 11. Nd5 {[%emt 0:00:35] White is slightly better.} Nxd5 {[%emt 0:11:09]} 12. cxd5 {[%emt 0:00:38]} Ne7 {[%emt 0:02:47]} 13. d4 {[%emt 0:12:38]} exd4 {[%emt 0:06:28]} 14. Nxd4 {[%emt 0:00:54]} Re8 {[%emt 0:01:21]} 15. Bb2 {[%emt 0:02:15]} c6 {[%emt 0:02:57]} 16. dxc6 {[%emt 0:30:35]} Nxc6 {[%emt 0:00:05]} 17. Ne2 {[%emt 0:02:47]} Be5 {[%emt 0:02:35]} 18. Qd2 {[%emt 0:01:38]} Be6 {[%emt 0:02:48][%cal Bd7e6,Be6c4,Bc4b5][%mdl 32]} 19. a3 {[%emt 0:02:05]} Qd8 {[%emt 0:03:54]} 20. f4 {[%emt 0:04:27]} Bxb2 {[%emt 0:00:54]} 21. Rxb2 {[%emt 0:00:05]} Qb6+ {[%emt 0:02:43]} 22. Kh1 {[%emt 0:00:13]} Bc4 {[%emt 0:00:05][%cal Od6d5]} 23. Rd1 {[%emt 0:01:00]} d5 {[%emt 0:03:59][%cal Bd6d5,Bd5d4][%mdl 32]} 24. e5 {[%emt 0:03:35]} d4 {[%emt 0:03:10]} 25. Qc2 {[%emt 0:03:36]} (25. Nxd4 $14 Red8 26. Bxc6 bxc6 27. Qc3) 25... Bb5 $11 {[%emt 0:03:46] ...d3 is the strong threat. The position is equal.} 26. Qc5 {[%emt 0:03:53]} Qxc5 {[%emt 0:00:20]} 27. bxc5 {[%emt 0:00:06]} Rad8 {[%emt 0:07:45][%cal Of7f6]} 28. Rbd2 {[%emt 0:00:18][%cal Re2d4]} f6 {[%emt 0:02:28]} 29. Nxd4 {[%emt 0:00:09]} Nxd4 {[%emt 0:00:48]} 30. Rxd4 {[%emt 0:00:18]} Rxd4 {[%emt 0:00:04]} 31. Rxd4 {[%emt 0:00:08]} fxe5 {[%emt 0:00:03]} 32. fxe5 {[%emt 0:06:21]} Rxe5 {[%emt 0:00:09] [#] And now ...Re1+ would win.} 33. Bxb7 {[%emt 0:00:06]} Rxc5 {[%emt 0:00:06]} 34. a4 {[%emt 0:00:09] Weighted Error Value: White=0.08 (flawless) /Black=0.05 (flawless)} 1/2-1/2

[Event "5th Sharjah Masters 2022"]
[Site "Sharjah"]
[Date "2022.05.26"]
[Round "6.15"]
[White "Chigaev, Maksim"]
[Black "Puranik, Abhimanyu"]
[Result "1/2-1/2"]
[ECO "C54"]
[WhiteElo "2631"]
[BlackElo "2608"]
[Annotator "TA"]
[PlyCount "239"]
[EventDate "2022.05.21"]
[EventType "swiss"]
[EventCountry "UAE"]
[SourceTitle "playchess.com"]
[Source "ChessBase"]
[SourceQuality "1"]
[TimeControl "5400+30"]

{[%evp 89,239,193,186,183,268,275,363,354,340,322,318,300,265,211,454,238,199,219,222,212,160,194,409,403,388,387,596,595,2806,2525,4676,4958,2356,1414,806,591,589,584,584,579,578,519,515,0,525,200,190,69,69,69,69,2,64,0,69,0,66,66,65,58,43,57,57,0,57,57,57,57,57,57,57,57,56,8,8,8,8,7,7,7,8,8,8,7,8,8,8,8,8,7,7,7,8,8,8,8,8,8,8,8,8,8,8,8,8,8,8,8,8,8,8,8,8,8,8,7,8,8,8,8,8,8,8,8,8,8,8,8,8,8,8,8,8,8,8,8,8,8,8,7,8,8,8,8,8,0,8,0,54,8,8,8]} 1. e4 {[%emt 0:00:25]} e5 {[%emt 0:00:18]} 2. Bc4 {[%emt 0:00:09]} Nf6 {[%emt 0:00:25]} 3. d3 {[%emt 0:00:08]} Nc6 {[%emt 0:00:35]} 4. Nf3 {[%emt 0:00:15]} Bc5 {[%emt 0:00:59]} 5. c3 {[%emt 0:00:35]} d6 {[%emt 0:00:09]} 6. Nbd2 {[%emt 0:00:21]} O-O {[%emt 0:01:14]} 7. h3 {[%emt 0:00:28]} a5 {[%emt 0:01:49]} 8. O-O {[%emt 0:01:07]} h6 {[%emt 0:00:19]} 9. Re1 {[%emt 0:00:44]} Be6 {[%emt 0:01:42]} 10. b3 {[%emt 0:00:46]} Qb8 {[%emt 0:04:28]} 11. Nf1 {[%emt 0:13:59]} Qa7 {[%emt 0:02:20]} 12. Be3 {[%emt 0:08:32]} Bxe3 {[%emt 0:01:59]} 13. Nxe3 {[%emt 0:00:03]} a4 {[%emt 0:12:56]} 14. Bxe6 {[%emt 0:02:22]} fxe6 {[%emt 0:00:02]} 15. b4 {[%emt 0:00:08]} Rf7 {[%emt 0:04:43]} 16. a3 {[%emt 0:00:35]} Raf8 {[%emt 0:05:24]} 17. Ra2 {[%emt 0:00:54]} Ne7 {[%emt 0:01:51]} 18. Nh2 {[%emt 0:09:18]} Ng6 {[%emt 0:01:46]} 19. g3 {[%emt 0:00:52]} b5 {[%emt 0:13:07]} 20. Rc2 {[%emt 0:10:00]} c5 {[%emt 0:04:59]} 21. Qb1 {[%emt 0:03:43]} d5 {[%emt 0:04:42]} 22. exd5 {[%emt 0:20:33]} exd5 {[%emt 0:00:56]} 23. bxc5 {[%emt 0:00:16]} Qxc5 {[%emt 0:00:10]} 24. Qb4 {[%emt 0:00:04]} Rc7 {[%emt 0:06:38]} 25. Rec1 {[%emt 0:01:01]} Qc6 {[%emt 0:11:17]} 26. Rb1 {[%emt 0:04:59]} Rfc8 {[%emt 0:02:58]} 27. Nhg4 {[%emt 0:01:52]} Nxg4 {[%emt 0:00:22]} 28. hxg4 {[%emt 0:00:20]} Ne7 {[%emt 0:01:35]} 29. d4 {[%emt 0:00:16]} e4 {[%emt 0:04:38]} 30. Kg2 {[%emt 0:01:08]} Kf7 {[%emt 0:03:05]} 31. g5 {[%emt 0:06:17]} hxg5 {[%emt 0:00:53]} 32. Ng4 {[%emt 0:00:16]} Ng6 {[%emt 0:00:40]} 33. Qxb5 {[%emt 0:01:24]} Qe6 {[%emt 0:02:42]} 34. Qe2 {[%emt 0:04:44]} Rxc3 {[%emt 0:04:20]} 35. Rxc3 {[%emt 0:00:17]} Rxc3 {[%emt 0:00:01]} 36. Ne3 {[%emt 0:00:35]} g4 {[%emt 0:01:26]} 37. Rb7+ {[%emt 0:00:29]} Kg8 {[%emt 0:00:05]} 38. Rb8+ {[%emt 0:03:37]} Kf7 {[%emt 0:00:21]} 39. Qb2 {[%emt 0:00:39]} Rc6 {[%emt 0:01:11]} 40. Rb7+ {[%emt 0:01:01]} Kg8 {[%emt 0:00:41]} 41. Qb5 {[%emt 0:00:55]} Rc3 {[%emt 0:00:40]} 42. Rb6 {[%emt 0:02:29]} Qf7 {[%emt 0:00:30]} 43. Qxd5 {[%emt 0:00:09]} Rxa3 {[%emt 0:00:32]} 44. Qxe4 {[%emt 0:02:08]} Qf3+ {[%emt 0:00:24]} 45. Qxf3 {[%emt 0:00:02]} gxf3+ {[%emt 0:00:01]} 46. Kxf3 {[%emt 0:00:01]} Ne7 {[%emt 0:00:35]} (46... Nf8 $142 47. Ra6 Nh7 48. Ra8+ Kf7 49. Ra7+ Kf8) 47. Ke4 $18 {[%emt 0:00:05]} Ra2 {[%emt 0:00:04]} 48. d5 {[%emt 0:00:34]} Kf7 {[%emt 0:01:23]} 49. Rb7 {[%emt 0:00:08]} Ke8 {[%emt 0:00:06]} 50. d6 {[%emt 0:00:25]} Nc6 {[%emt 0:00:17]} 51. Nf5 {[%emt 0:00:44]} (51. Rxg7 $6 Rd2 $16) 51... Re2+ $2 {[%emt 0:00:34]} (51... Kf8 52. Rc7 (52. Rxg7 a3 $16) (52. Nxg7 Rd2 $16) 52... Nd8) 52. Kf3 {[%emt 0:02:14]} (52. Kd5 $142 Nd8 53. Nxg7+ Kf8 54. Rb8 Rd2+ 55. Ke5 Kxg7 56. Rxd8) 52... Re5 $18 {[%emt 0:00:34]} 53. Nxg7+ {[%emt 0:00:54]} Kd8 {[%emt 0:00:01]} 54. Rc7 {[%emt 0:00:26]} Nd4+ {[%emt 0:00:25]} 55. Kf4 {[%emt 0:00:06]} Rd5 $2 {[%emt 0:00:45]} (55... Re2 {was worth a try.}) 56. Ra7 $18 {[%emt 0:00:17]} Rxd6 {[%emt 0:00:41]} 57. Rxa4 {[%emt 0:00:06]} Ne2+ {[%emt 0:00:06]} (57... Rd7 {might work better.} 58. g4 Ne2+ 59. Ke3 Re7+ 60. Kf3 Nc3) 58. Ke5 $18 {[%emt 0:00:44]} Rd3 {[%emt 0:00:02]} 59. Ne6+ {[%emt 0:00:39]} Ke7 {[%emt 0:00:13]} 60. Ra7+ {[%emt 0:00:31]} Ke8 {[%emt 0:00:01]} 61. Ra8+ {[%emt 0:01:20]} Ke7 {[%emt 0:00:01]} 62. Nf4 {[%emt 0:00:45]} Rd2 {[%emt 0:00:08]} 63. Nd5+ {[%emt 0:00:12]} Kf7 {[%emt 0:00:13]} 64. Ra7+ {[%emt 0:00:04]} Kg6 {[%emt 0:00:08]} 65. Ra6+ {[%emt 0:00:21]} Kg7 {[%emt 0:00:22]} 66. Ra7+ {[%emt 0:00:33]} Kg6 $1 {[%emt 0:00:02]} 67. g4 $2 {[%emt 0:00:47]} (67. Ne7+ Kf7 68. g4) 67... Nd4 $18 {[%emt 0:01:09] [#]} 68. Nf4+ {[%emt 0:00:36]} ({White must play} 68. Ke4 $1 $18) 68... Kg5 $14 {[%emt 0:00:00]} 69. Rg7+ {[%emt 0:00:06]} Kh4 {[%emt 0:00:06]} 70. Ng2+ {[%emt 0:00:57]} Kh3 {[%emt 0:00:02]} 71. Nf4+ {[%emt 0:00:56]} (71. Ne3 $5 {[%cal Rg7h7]} Nc6+ 72. Ke4 Rxf2 73. Rc7 $14) 71... Kh4 {[%emt 0:00:03]} 72. Ng2+ {[%emt 0:00:22]} Kh3 {[%emt 0:00:08]} 73. Ne3 $1 {[%emt 0:00:05]} Nc6+ $1 {[%emt 0:00:33]} 74. Ke4 {[%emt 0:00:06]} Rxf2 {[%emt 0:00:07]} 75. g5 {[%emt 0:00:35]} Kh4 {[%emt 0:00:14]} 76. g6 {[%emt 0:00:14]} ({White should play} 76. Rc7 $1 $14 Kxg5 77. Rxc6) 76... Kg5 {[%emt 0:00:39]} (76... Rf6 $1 $11) 77. Rf7 $14 {[%emt 0:00:03]} Rf6 $1 {[%emt 0:01:01]} 78. g7 {[%emt 0:00:18]} Re6+ {[%emt 0:01:48]} 79. Kd5 {[%emt 0:00:06]} Rg6 {[%emt 0:00:35]} 80. Ng2 {[%emt 0:02:40]} Nd8 {[%emt 0:01:39]} 81. Rf8 {[%emt 0:00:27]} (81. Rd7 $14 {should be considered.}) 81... Rxg7 $11 {[%emt 0:00:12]} 82. Rxd8 {[%emt 0:00:02]} Re7 {[%emt 0:00:31]} 83. Kd4 {[%emt 0:00:04]} Kf6 {[%emt 0:00:17]} 84. Nf4 {[%emt 0:00:01]} Rf7 {[%emt 0:00:30]} 85. Nd5+ {[%emt 0:00:12]} Ke6 {[%emt 0:00:20]} 86. Kc5 {[%emt 0:00:10]} Rf3 {[%emt 0:00:47]} 87. Re8+ {[%emt 0:00:09]} Kf7 {[%emt 0:00:21]} 88. Re7+ {[%emt 0:00:05]} Kg6 {[%emt 0:00:03]} 89. Kd4 {[%emt 0:00:03]} Rf1 {[%emt 0:00:27]} 90. Re6+ {[%emt 0:00:03]} Kf7 {[%emt 0:00:19]} 91. Ra6 {[%emt 0:00:03]} Re1 {[%emt 0:00:11]} 92. Ne3 {[%emt 0:00:04]} Ke7 {[%emt 0:00:11]} 93. Rb6 {[%emt 0:00:04]} Kf7 {[%emt 0:00:08]} 94. Ke4 {[%emt 0:00:05]} Ke7 {[%emt 0:00:06]} 95. Kf4 {[%emt 0:00:08]} Kd7 {[%emt 0:00:04]} 96. Nc4 {[%emt 0:00:03]} Kc7 {[%emt 0:00:21]} 97. Rh6 {[%emt 0:00:05]} Kd7 {[%emt 0:00:25]} 98. Ne5+ {[%emt 0:00:05]} Ke7 {[%emt 0:00:03]} 99. Nf3 {[%emt 0:00:20]} Re2 {[%emt 0:00:07]} 100. Nd4 {[%emt 0:00:16]} Re1 {[%emt 0:00:04]} 101. Kf5 {[%emt 0:00:03]} Rf1+ {[%emt 0:00:29]} 102. Ke5 {[%emt 0:00:03]} Re1+ {[%emt 0:00:03]} 103. Kd5 {[%emt 0:00:02]} Kf7 {[%emt 0:00:06]} 104. Nf3 {[%emt 0:00:08]} Rd1+ {[%emt 0:00:05]} 105. Ke4 {[%emt 0:00:03]} Ke7 {[%emt 0:00:10]} 106. Ke5 {[%emt 0:00:02]} Kf7 {[%emt 0:01:00]} 107. Kf5 {[%emt 0:00:26]} Ke7 {[%emt 0:00:32]} 108. Re6+ {[%emt 0:00:04]} Kd8 {[%emt 0:00:26]} 109. Rc6 {[%emt 0:00:25]} Rf1 {[%emt 0:00:12]} 110. Rc3 {[%emt 0:00:05]} Ke7 {[%emt 0:00:16]} 111. Ke5 {[%emt 0:00:03]} Kd7 {[%emt 0:01:07]} 112. Rb3 {[%emt 0:00:12]} Rc1 {[%emt 0:00:09]} 113. Rb7+ {[%emt 0:00:19]} Rc7 {[%emt 0:00:07]} 114. Rb1 {[%emt 0:00:08]} Rc5+ {[%emt 0:00:47]} 115. Kd4 {[%emt 0:00:01]} Kd6 {[%emt 0:00:07]} 116. Rb6+ {[%emt 0:00:10]} Rc6 {[%emt 0:00:04]} 117. Rb5 {[%emt 0:00:03]} Rc1 {[%emt 0:00:21]} 118. Rd5+ {[%emt 0:00:07]} Kc7 {[%emt 0:00:40]} (118... Ke6 $11) 119. Rc5+ {[%emt 0:00:06]} (119. Ke5 $14) 119... Rxc5 $11 {[%emt 0:00:03]} 120. Kxc5 {[%emt 0:00:02]} 1/2-1/2

[Event "5th Sharjah Masters 2022"]
[Site "Sharjah"]
[Date "2022.05.26"]
[Round "6.16"]
[White "Yuffa, Daniil"]
[Black "Ponkratov, Pavel"]
[Result "0-1"]
[ECO "D38"]
[WhiteElo "2597"]
[BlackElo "2624"]
[Annotator "TA"]
[PlyCount "74"]
[EventDate "2022.05.21"]
[EventType "swiss"]
[EventCountry "UAE"]
[SourceTitle "playchess.com"]
[Source "ChessBase"]
[SourceQuality "1"]
[TimeControl "5400+30"]

{[%evp 12,74,27,17,18,3,12,13,11,14,19,15,46,45,45,0,0,-10,-11,-6,-22,-32,32,26,27,9,9,17,16,10,1,-33,-15,-37,-32,-41,-16,-33,-29,-111,-79,-78,-60,-120,-11,-12,0,0,0,-14,-15,-36,-75,-75,-61,-131,-171,-212,-14,-389,-356,-303,-343,-1169,-1131]} 1. d4 {[%emt 0:00:22]} Nf6 {[%emt 0:00:04]} 2. c4 {[%emt 0:00:06]} e6 {[%emt 0:00:04]} 3. Nf3 {[%emt 0:00:20]} d5 {[%emt 0:00:05]} 4. Nc3 {[%emt 0:00:06]} Bb4 {[%emt 0:00:58]} 5. Qa4+ {[%emt 0:00:19]} Nc6 {[%emt 0:00:05]} 6. e3 {[%emt 0:00:18]} O-O {[%emt 0:00:21]} 7. Bd2 {[%emt 0:00:53]} Re8 {[%emt 0:03:40] D38: Queen's Gambit Declined: Ragozin Defence (4 Nf3 Bb4).} 8. Qc2 {[%emt 0:01:52]} a6 {[%emt 0:00:24]} 9. a3 {[%emt 0:09:10]} Bd6 {[%emt 0:01:36] The position is equal.} 10. h3 {[%emt 0:04:54]} dxc4 $5 {[%emt 0:08:07][%mdl 4] Exploring less charted territory.} 11. Bxc4 {[%emt 0:00:09]} b5 {[%emt 0:00:03]} 12. Bd3 {[%emt 0:08:47]} e5 {[%emt 0:06:42]} 13. Ne4 {[%emt 0:04:28]} Bb7 $1 {[%emt 0:00:45][%cal Oc6d4] [#]} 14. d5 $146 {[%emt 0:14:39]} ({Predecessor:} 14. O-O-O exd4 15. exd4 Nxd4 16. Nxf6+ Qxf6 17. Nxd4 Qxd4 18. Bxh7+ Kh8 19. Be3 Qc4 20. Rd4 Qxc2+ 21. Bxc2 {0-1 (41) Mamedyarov,S (2764)-Gasanov,E (2481) Chess.com INT 2020}) 14... Nxd5 {[%emt 0:01:29]} 15. Nxd6 {[%emt 0:00:08]} cxd6 {[%emt 0:00:06]} 16. Bxh7+ {[%emt 0:00:13]} Kh8 {[%emt 0:06:18]} ({Black should try} 16... Kf8 $15) 17. Be4 $14 {[%emt 0:05:34]} Rc8 {[%emt 0:15:40][%cal Ba8c8,Bc8c7,Bc7c4][%mdl 32]} 18. Qd1 {[%emt 0:04:03]} (18. Bxd5 Ne7 $1 19. Bc6 f6 $15) 18... Nf6 {[%emt 0:03:32]} 19. Ng5 {[%emt 0:01:46]} Kg8 {[%emt 0:00:50]} 20. Bf5 {[%emt 0:02:45]} (20. Qb3 Qd7 $15) 20... Rc7 {[%emt 0:00:29][%cal Oc6d4]} 21. h4 {[%emt 0:01:33]} Ne7 {[%emt 0:12:32]} 22. Bb1 {[%emt 0:05:36]} Qc8 {[%emt 0:06:43]} 23. Ba5 {[%emt 0:06:39][%csl LRc7,LRd6]} Rc4 {[%emt 0:00:37]} (23... Bxg2 24. Rg1 Bd5 25. Bxc7 Qxc7 26. h5 $14) 24. Ba2 {[%emt 0:01:08]} Bxg2 {[%emt 0:04:00]} 25. Rh2 {[%emt 0:03:34]} (25. Bxc4 $11 {remains equal.} bxc4 26. Rg1) 25... Bd5 {[%emt 0:01:06] aiming for ...Rg4.} 26. Bxc4 {[%emt 0:00:19]} bxc4 {[%emt 0:00:08]} (26... Qxc4 27. Rc1 Qg4 28. Qxg4 Nxg4 29. Rh3 $11) 27. Bb4 {[%emt 0:05:38]} (27. Bc3 $1 $15) 27... Ng6 {[%emt 0:07:34]} ({Black should play} 27... a5 $17 28. Bc3 (28. Bxd6 $2 Nf5 $19) 28... Ng4) 28. f3 $1 $11 {[%emt 0:02:52]} (28. Bxd6 $2 Qf5 29. Rc1 Nxh4 $1 {[%mdl 512]} 30. Rxh4 Qxg5 31. Rhxc4 Qg1+ 32. Kd2 Qxf2+ 33. Qe2 Qf5 $19) 28... a5 $36 {[%emt 0:05:47][%mdl 3072] Black has compensation. White is under pressure.} 29. Bc3 {[%emt 0:01:52]} ({Reject} 29. Bxd6 Rd8 30. e4 (30. h5 $2 Qf5 $17) 30... Rxd6 31. exd5 Qc5 $17) 29... Qc5 {[%emt 0:00:38]} 30. Qd2 {[%emt 0:00:23] [#] And now 0-0-0 would win.} Nf4 $1 {[%emt 0:00:08][%cal Od5f3]} 31. O-O-O {[%emt 0:00:12]} (31. Kf1 Nd3) 31... Nd3+ {[%emt 0:00:23]} 32. Kb1 {[%emt 0:00:10]} Rb8 {[%emt 0:00:32][%cal Od3b2] Threatens to win with ...Nxb2!} 33. Ka1 {[%emt 0:01:40]} (33. e4 $15 Qxa3 34. Rc1 (34. exd5 $2 Nxd5 35. Rc1 Qa4 $19)) 33... Rb3 $17 {[%emt 0:00:24][%cal Od5f3] Strongly threatening ...Bxf3! Black is much more active.} 34. e4 {[%emt 0:00:57] [#]} Bc6 {[%emt 0:02:07]} (34... Nxb2 $1 $19 {[%mdl 512]} 35. Bxb2 c3) 35. Ka2 {[%emt 0:02:29][%mdl 8192]} (35. h5 $11 Rxa3+ 36. bxa3 Qxa3+ 37. Kb1 Qb3+ 38. Ka1 Qa3+ 39. Kb1 Qb3+ 40. Ka1 Qa3+) 35... d5 {[%emt 0:01:06]} 36. exd5 {[%emt 0:02:13]} Nxd5 {[%emt 0:00:23] Dancing on a razor blade. Pair of Knights!} 37. Bxa5 {[%emt 0:00:47]} (37. Rc1) 37... Nxb2 {[%emt 0:02:51] Weighted Error Value: White=0.55/Black=0.25 (precise)} 0-1

[Event "5th Sharjah Masters 2022"]
[Site "Sharjah"]
[Date "2022.05.26"]
[Round "6.17"]
[White "Sanal, Vahap"]
[Black "Sadhwani, Raunak"]
[Result "1/2-1/2"]
[ECO "C47"]
[WhiteElo "2575"]
[BlackElo "2619"]
[Annotator "TA"]
[PlyCount "39"]
[EventDate "2022.05.21"]
[EventType "swiss"]
[EventCountry "UAE"]
[SourceTitle "playchess.com"]
[Source "ChessBase"]
[SourceQuality "1"]
[TimeControl "5400+30"]

{[%evp 17,39,4,7,1,0,8,7,0,0,-22,0,0,0,0,0,0,0,0,0,0,0,0,0,0]} 1. e4 {[%emt 0:00:03]} e5 {[%emt 0:00:04]} 2. Nf3 {[%emt 0:00:09]} Nc6 {[%emt 0:00:04]} 3. Nc3 {[%emt 0:02:16]} Nf6 {[%emt 0:00:21]} 4. d4 {[%emt 0:00:08]} exd4 {[%emt 0:00:25]} 5. Nxd4 {[%emt 0:00:08]} Bb4 {[%emt 0:01:42]} 6. Nxc6 {[%emt 0:00:10]} bxc6 {[%emt 0:00:04]} 7. Bd3 {[%emt 0:00:07]} O-O {[%emt 0:00:06]} 8. O-O {[%emt 0:00:10]} d5 {[%emt 0:00:07]} 9. exd5 {[%emt 0:00:10]} cxd5 {[%emt 0:01:06] The position is equal.} 10. h3 {[%emt 0:00:08] C47: Scotch Four Knights and Four Knights with 4 g3.} Rb8 {[%emt 0:03:21]} 11. Be3 {[%emt 0:04:17] [#]} a5 $146 {[%emt 0:05:24]} ({Predecessor:} 11... Bd6 12. Bxa7 Rxb2 13. Bd4 Rb8 14. Bxf6 Qxf6 15. Nxd5 {½-½ (15) Seyfried,C (2148)-Hassenrueck,H (2208) Niederhausen 2016}) 12. Bd4 {[%emt 0:07:57]} Be6 {[%emt 0:06:32]} 13. Na4 {[%emt 0:09:45]} Nd7 {[%emt 0:03:38]} 14. b3 {[%emt 0:09:22]} Qh4 {[%emt 0:02:53]} 15. f4 {[%emt 0:07:27]} Bxh3 {[%emt 0:29:19]} 16. gxh3 {[%emt 0:19:47] [#] aiming for Qg4.} Qg3+ {[%emt 0:00:08]} 17. Kh1 {[%emt 0:00:04]} Qxh3+ {[%emt 0:00:04]} 18. Kg1 {[%emt 0:00:03] Hoping for Qf3.} Qg3+ {[%emt 0:00:16]} 19. Kh1 {[%emt 0:00:08]} Qh3+ {[%emt 0:00:03]} 20. Kg1 {[%emt 0:00:06] An even fight not without its subleties.  Weighted Error Value: White=0.04 (flawless) /Black=0.03 (flawless)} 1/2-1/2

[Event "5th Sharjah Masters 2022"]
[Site "Sharjah"]
[Date "2022.05.26"]
[Round "6.18"]
[White "Adhiban, B.."]
[Black "Van Foreest, Lucas"]
[Result "1/2-1/2"]
[ECO "D30"]
[WhiteElo "2616"]
[BlackElo "2572"]
[Annotator "TA"]
[PlyCount "53"]
[EventDate "2022.05.21"]
[EventType "swiss"]
[EventCountry "UAE"]
[SourceTitle "playchess.com"]
[Source "ChessBase"]
[SourceQuality "1"]
[TimeControl "5400+30"]

{[%evp 10,53,13,-6,-1,-10,0,14,0,0,0,0,0,0,0,0,0,0,0,-11,-11,-26,-5,-8,-8,-8,-8,-8,-6,-12,-7,-7,0,-6,0,0,0,0,0,-11,0,-8,0,0,0,0]} 1. d4 {[%emt 0:00:04]} d5 {[%emt 0:00:23]} 2. c4 {[%emt 0:00:06]} e6 {[%emt 0:00:06]} 3. Nf3 {[%emt 0:00:09]} Nf6 {[%emt 0:00:11]} 4. Bg5 {[%emt 0:00:22]} Be7 {[%emt 0:02:41]} 5. e3 {[%emt 0:03:12]} O-O {[%emt 0:01:57]} 6. Nbd2 {[%emt 0:08:24]} b6 {[%emt 0:00:05] is the legacy move (6...Nbd7). D30: Queen's Gambit Declined: Systems without Nc3.} 7. Rc1 {[%emt 0:02:49]} h6 {[%emt 0:01:30]} 8. Bh4 {[%emt 0:04:23]} Bb7 {[%emt 0:00:13]} 9. Be2 {[%emt 0:11:16]} Nbd7 {[%emt 0:00:20]} 10. O-O {[%emt 0:00:05]} c5 {[%emt 0:00:12]} 11. cxd5 {[%emt 0:00:11]} Nxd5 {[%emt 0:00:22]} 12. Bg3 {[%emt 0:00:14]} Rc8 {[%emt 0:01:36]} 13. a3 {[%emt 0:10:29]} N5f6 {[%emt 0:00:06]} 14. h3 {[%emt 0:06:56]} a6 {[%emt 0:00:04]} 15. Bh2 {[%emt 0:00:11] [#]} cxd4 $146 {[%emt 0:13:07]} ({Predecessor:} 15... b5 16. a4 Qb6 17. axb5 axb5 18. dxc5 Nxc5 19. Nd4 Ba6 20. Bf3 Bb7 21. Be2 Ba6 22. Bf3 Bb7 {½-½ (22) Ivanov,M (2425)-Baramidze,D (2463) Bad Zwesten 2004}) 16. Rxc8 {[%emt 0:01:40] The position is equal.} Qxc8 {[%emt 0:00:10]} 17. Nxd4 {[%emt 0:00:03]} Qa8 {[%emt 0:00:28]} 18. Bf3 {[%emt 0:00:34]} Rc8 {[%emt 0:00:41]} 19. Qb1 {[%emt 0:03:11]} Bc5 {[%emt 0:04:37]} 20. N4b3 {[%emt 0:02:13]} Bf8 {[%emt 0:01:52]} 21. Rd1 {[%emt 0:01:33]} Nc5 {[%emt 0:03:06]} 22. Bxb7 {[%emt 0:03:00]} Qxb7 {[%emt 0:00:45]} 23. Be5 {[%emt 0:00:07]} Ncd7 {[%emt 0:06:38]} 24. Bg3 {[%emt 0:02:20]} Nc5 {[%emt 0:00:06]} 25. Be5 {[%emt 0:00:39]} Ncd7 {[%emt 0:00:17]} 26. Bg3 {[%emt 0:00:04]} Nc5 {[%emt 0:00:03]} 27. Be5 {[%emt 0:00:19] A balanced but interesting game.  Weighted Error Value: White=0.02 (flawless) /Black=0.03 (flawless)} 1/2-1/2